[Event "Titled Tuesday Blitz September 13 Late 2022"]
[White "Kravtsiv, Martyn"]
[Black "Andreikin, Dmitry"]
[WhiteFideId "14113147"]
[BlackFideId "4158814"]
[WhiteElo "2694"]
[BlackElo "2736"]
[Result "0-1"]
[Round "03"]
[TimeControl "180+1"]
[Date "2022.09.13"]
[WhiteClock "0:00:02"]
[BlackClock "0:00:05"]

1. e4 {[%clk 0:03:00]}  e6 {[%clk 0:03:00]} 2. d4 {[%clk 0:03:00]}  d5 {[%clk 0:03:01]} 3. Nc3 {[%clk 0:03:00]}  Bb4 {[%clk 0:03:01]} 4. e5 {[%clk 0:02:57]}  c5 {[%clk 0:03:01]} 5. Bd2 {[%clk 0:02:57]}  a6 {[%clk 0:02:54]} 6. Qg4 {[%clk 0:02:53]}  Ne7 {[%clk 0:02:50]} 7. dxc5 {[%clk 0:02:48]}  Nbc6 {[%clk 0:02:46]} 8. Nf3 {[%clk 0:02:36]}  Nf5 {[%clk 0:02:26]} 9. Bd3 {[%clk 0:02:30]}  h5 {[%clk 0:02:26]} 10. Qf4 {[%clk 0:02:25]}  Bxc5 {[%clk 0:02:26]} 11. O-O-O {[%clk 0:02:12]}  Nce7 {[%clk 0:02:22]} 12. Qg5 {[%clk 0:01:50]}  Bxf2 {[%clk 0:01:58]} 13. Rhf1 {[%clk 0:01:42]}  Ba7 {[%clk 0:01:58]} 14. h3 {[%clk 0:01:41]}  h4 {[%clk 0:01:36]} 15. Nxh4 {[%clk 0:01:39]}  Rxh4 {[%clk 0:01:16]} 16. g4 {[%clk 0:01:36]}  Rxh3 {[%clk 0:01:09]} 17. gxf5 {[%clk 0:01:35]}  Rxd3 {[%clk 0:01:09]} 18. cxd3 {[%clk 0:01:25]}  Nxf5 {[%clk 0:01:09]} 19. Rxf5 {[%clk 0:01:12]}  exf5 {[%clk 0:01:08]} 20. Qxg7 {[%clk 0:01:12]}  Be6 {[%clk 0:01:07]} 21. Bg5 {[%clk 0:01:08]}  Qc8 {[%clk 0:01:01]} 22. Qf6 {[%clk 0:01:08]}  Bc5 {[%clk 0:00:56]} 23. Kb1 {[%clk 0:01:04]}  Kd7 {[%clk 0:00:49]} 24. Rc1 {[%clk 0:01:02]}  Qf8 {[%clk 0:00:38]} 25. Na4 {[%clk 0:01:01]}  Bd4 {[%clk 0:00:34]} 26. a3 {[%clk 0:00:41]}  Rc8 {[%clk 0:00:32]} 27. Rxc8 {[%clk 0:00:31]}  Kxc8 {[%clk 0:00:33]} 28. Nc3 {[%clk 0:00:27]}  Bxc3 {[%clk 0:00:23]} 29. bxc3 {[%clk 0:00:26]}  Kd7 {[%clk 0:00:23]} 30. Kb2 {[%clk 0:00:25]}  b6 {[%clk 0:00:19]} 31. Bh4 {[%clk 0:00:24]}  Kc6 {[%clk 0:00:19]} 32. a4 {[%clk 0:00:14]}  a5 {[%clk 0:00:18]} 33. d4 {[%clk 0:00:12]}  b5 {[%clk 0:00:17]} 34. axb5+ {[%clk 0:00:11]}  Kxb5 {[%clk 0:00:18]} 35. Qg5 {[%clk 0:00:06]}  Kc4 {[%clk 0:00:15]} 36. Qd2 {[%clk 0:00:04]}  Qb8+ {[%clk 0:00:14]} 37. Kc1 {[%clk 0:00:04]}  f4 {[%clk 0:00:11]} 38. Qxf4 {[%clk 0:00:02]}  Kb5 {[%clk 0:00:05]} 0-1


[Site "https://www.chess.com"]

[Event "Titled Tuesday Blitz September 13 Late 2022"]
[White "Lenderman, Aleksandr"]
[Black "Djokic, Mihailo"]
[WhiteFideId "2021285"]
[BlackFideId "976440"]
[WhiteElo "2607"]
[BlackElo "2315"]
[Result "1/2-1/2"]
[Round "03"]
[TimeControl "180+1"]
[Date "2022.09.13"]
[WhiteClock "0:00:22"]
[BlackClock "0:00:15"]

1. e4 {[%clk 0:03:00]}  c5 {[%clk 0:02:58]} 2. c3 {[%clk 0:03:00]}  Nf6 {[%clk 0:02:55]} 3. e5 {[%clk 0:03:00]}  Nd5 {[%clk 0:02:55]} 4. d4 {[%clk 0:03:00]}  cxd4 {[%clk 0:02:54]} 5. Nf3 {[%clk 0:03:01]}  d6 {[%clk 0:02:54]} 6. cxd4 {[%clk 0:03:00]}  e6 {[%clk 0:02:51]} 7. Bc4 {[%clk 0:02:56]}  Nc6 {[%clk 0:02:51]} 8. O-O {[%clk 0:02:56]}  Be7 {[%clk 0:02:50]} 9. Qe2 {[%clk 0:02:54]}  O-O {[%clk 0:02:48]} 10. Rd1 {[%clk 0:02:54]}  Na5 {[%clk 0:02:47]} 11. Bxd5 {[%clk 0:02:54]}  exd5 {[%clk 0:02:46]} 12. Nc3 {[%clk 0:02:54]}  Be6 {[%clk 0:02:22]} 13. Bf4 {[%clk 0:02:53]}  dxe5 {[%clk 0:01:56]} 14. dxe5 {[%clk 0:02:54]}  Nc6 {[%clk 0:01:56]} 15. Nd4 {[%clk 0:02:52]}  Qd7 {[%clk 0:01:51]} 16. Rd3 {[%clk 0:02:30]}  Nxd4 {[%clk 0:01:46]} 17. Rxd4 {[%clk 0:02:31]}  Bc5 {[%clk 0:01:47]} 18. Rd3 {[%clk 0:02:31]}  Rfd8 {[%clk 0:01:43]} 19. Rad1 {[%clk 0:02:31]}  Bg4 {[%clk 0:01:35]} 20. Qd2 {[%clk 0:02:14]}  Bxd1 {[%clk 0:01:32]} 21. Qxd1 {[%clk 0:02:15]}  d4 {[%clk 0:01:07]} 22. Ne4 {[%clk 0:02:15]}  Qf5 {[%clk 0:00:52]} 23. Qf3 {[%clk 0:01:59]}  Rac8 {[%clk 0:00:49]} 24. g4 {[%clk 0:01:57]}  Qg6 {[%clk 0:00:46]} 25. Bg5 {[%clk 0:01:57]}  Re8 {[%clk 0:00:43]} 26. Qf4 {[%clk 0:01:45]}  f6 {[%clk 0:00:34]} 27. Bh4 {[%clk 0:01:25]}  fxe5 {[%clk 0:00:22]} 28. Qf3 {[%clk 0:01:25]}  Rf8 {[%clk 0:00:23]} 29. Qe2 {[%clk 0:01:25]}  Rf4 {[%clk 0:00:23]} 30. f3 {[%clk 0:01:25]}  h5 {[%clk 0:00:19]} 31. h3 {[%clk 0:01:23]}  hxg4 {[%clk 0:00:19]} 32. hxg4 {[%clk 0:01:23]}  Rcf8 {[%clk 0:00:19]} 33. Kg2 {[%clk 0:01:22]}  Bb6 {[%clk 0:00:14]} 34. Bg3 {[%clk 0:01:22]}  R4f7 {[%clk 0:00:11]} 35. Bxe5 {[%clk 0:01:20]}  Rd8 {[%clk 0:00:09]} 36. f4 {[%clk 0:01:17]}  Re7 {[%clk 0:00:07]} 37. Qf3 {[%clk 0:01:13]}  Rf8 {[%clk 0:00:06]} 38. Qe2 {[%clk 0:00:39]}  Bc7 {[%clk 0:00:02]} 39. Bxc7 {[%clk 0:00:32]}  Rxe4 {[%clk 0:00:02]} 40. Qf3 {[%clk 0:00:32]}  Re3 {[%clk 0:00:01]} 41. Rxe3 {[%clk 0:00:19]}  dxe3 {[%clk 0:00:02]} 42. Be5 {[%clk 0:00:16]}  Qc6 {[%clk 0:00:02]} 43. Qxc6 {[%clk 0:00:16]}  bxc6 {[%clk 0:00:03]} 44. Kf3 {[%clk 0:00:16]}  Rd8 {[%clk 0:00:04]} 45. Kxe3 {[%clk 0:00:15]}  Kf7 {[%clk 0:00:04]} 46. Bc3 {[%clk 0:00:15]}  Rd5 {[%clk 0:00:04]} 47. Ke4 {[%clk 0:00:15]}  g6 {[%clk 0:00:04]} 48. a4 {[%clk 0:00:15]}  a6 {[%clk 0:00:04]} 49. b3 {[%clk 0:00:14]}  Ke6 {[%clk 0:00:05]} 50. Be5 {[%clk 0:00:13]}  Rc5 {[%clk 0:00:03]} 51. f5+ {[%clk 0:00:14]}  gxf5+ {[%clk 0:00:04]} 52. gxf5+ {[%clk 0:00:15]}  Kf7 {[%clk 0:00:05]} 53. Bd4 {[%clk 0:00:15]}  Rc2 {[%clk 0:00:05]} 54. Kd3 {[%clk 0:00:15]}  Rg2 {[%clk 0:00:04]} 55. f6 {[%clk 0:00:16]}  Rg5 {[%clk 0:00:04]} 56. Kc4 {[%clk 0:00:16]}  Ke6 {[%clk 0:00:03]} 57. Bc3 {[%clk 0:00:14]}  Rf5 {[%clk 0:00:03]} 58. Bd4 {[%clk 0:00:14]}  Rd5 {[%clk 0:00:03]} 59. Bb2 {[%clk 0:00:15]}  Rf5 {[%clk 0:00:04]} 60. Bc3 {[%clk 0:00:15]}  Rd5 {[%clk 0:00:04]} 61. Bd4 {[%clk 0:00:15]}  Rf5 {[%clk 0:00:05]} 62. Bc3 {[%clk 0:00:16]}  Kd6 {[%clk 0:00:05]} 63. Bb4+ {[%clk 0:00:15]}  c5 {[%clk 0:00:04]} 64. Bc3 {[%clk 0:00:16]}  Kc6 {[%clk 0:00:04]} 65. Kd3 {[%clk 0:00:14]}  Rf4 {[%clk 0:00:04]} 66. Ke3 {[%clk 0:00:14]}  Rf5 {[%clk 0:00:04]} 67. Ke4 {[%clk 0:00:15]}  Rf1 {[%clk 0:00:04]} 68. Ke5 {[%clk 0:00:15]}  Rf3 {[%clk 0:00:04]} 69. Bd2 {[%clk 0:00:14]}  Rxb3 {[%clk 0:00:04]} 70. f7 {[%clk 0:00:14]}  Rb8 {[%clk 0:00:03]} 71. Bh6 {[%clk 0:00:13]}  c4 {[%clk 0:00:01]} 72. f8=Q {[%clk 0:00:13]}  Rxf8 {[%clk 0:00:02]} 73. Bxf8 {[%clk 0:00:14]}  c3 {[%clk 0:00:02]} 74. Bh6 {[%clk 0:00:11]}  Kc5 {[%clk 0:00:02]} 75. Bc1 {[%clk 0:00:09]}  Kc4 {[%clk 0:00:02]} 76. Ke4 {[%clk 0:00:10]}  a5 {[%clk 0:00:01]} 77. Ke3 {[%clk 0:00:10]}  Kb3 {[%clk 0:00:02]} 78. Kd3 {[%clk 0:00:11]}  Kxa4 {[%clk 0:00:02]} 79. Kxc3 {[%clk 0:00:11]}  Kb5 {[%clk 0:00:03]} 80. Kb2 {[%clk 0:00:12]}  a4 {[%clk 0:00:04]} 81. Ka1 {[%clk 0:00:13]}  Kc4 {[%clk 0:00:04]} 82. Ka2 {[%clk 0:00:14]}  Kb4 {[%clk 0:00:05]} 83. Bd2+ {[%clk 0:00:14]}  Kc4 {[%clk 0:00:06]} 84. Be1 {[%clk 0:00:14]}  Kb5 {[%clk 0:00:07]} 85. Bf2 {[%clk 0:00:15]}  Kc4 {[%clk 0:00:07]} 86. Bg3 {[%clk 0:00:16]}  Kb5 {[%clk 0:00:08]} 87. Bh4 {[%clk 0:00:17]}  Kc4 {[%clk 0:00:09]} 88. Bg5 {[%clk 0:00:18]}  Kb5 {[%clk 0:00:10]} 89. Bh6 {[%clk 0:00:19]}  Kc4 {[%clk 0:00:11]} 90. Bg7 {[%clk 0:00:20]}  Kb5 {[%clk 0:00:12]} 91. Bh8 {[%clk 0:00:20]}  Kc4 {[%clk 0:00:13]} 92. Ka3 {[%clk 0:00:21]}  Kb5 {[%clk 0:00:14]} 93. Bc3 {[%clk 0:00:21]}  Kc4 {[%clk 0:00:15]} 94. Kxa4 {[%clk 0:00:22]} 1/2-1/2


[Site "https://www.chess.com"]

[Event "Titled Tuesday Blitz September 13 Late 2022"]
[White "Makarian, Rudik"]
[Black "Kovacevic, Radmila"]
[WhiteFideId "44105681"]
[BlackFideId "933171"]
[WhiteElo "2410"]
[BlackElo "2208"]
[Result "1-0"]
[Round "03"]
[TimeControl "180+1"]
[Date "2022.09.13"]
[WhiteClock "0:01:25"]
[BlackClock "0:00:06"]

1. b3 {[%clk 0:02:54]}  e5 {[%clk 0:02:59]} 2. Bb2 {[%clk 0:02:47]}  Nc6 {[%clk 0:02:59]} 3. e3 {[%clk 0:02:43]}  Nf6 {[%clk 0:02:57]} 4. Bb5 {[%clk 0:02:38]}  Bd6 {[%clk 0:02:50]} 5. Bxc6 {[%clk 0:02:33]}  dxc6 {[%clk 0:02:46]} 6. d3 {[%clk 0:02:34]}  Bg4 {[%clk 0:02:42]} 7. Ne2 {[%clk 0:02:33]}  Qe7 {[%clk 0:02:38]} 8. e4 {[%clk 0:02:26]}  Bb4+ {[%clk 0:02:26]} 9. Nd2 {[%clk 0:02:23]}  O-O-O {[%clk 0:02:23]} 10. f3 {[%clk 0:02:23]}  Be6 {[%clk 0:02:20]} 11. O-O {[%clk 0:02:20]}  Bc5+ {[%clk 0:02:02]} 12. Kh1 {[%clk 0:02:20]}  g5 {[%clk 0:01:51]} 13. Bxe5 {[%clk 0:02:17]}  g4 {[%clk 0:01:33]} 14. Ng3 {[%clk 0:02:11]}  h5 {[%clk 0:01:13]} 15. Bxf6 {[%clk 0:01:56]}  Qxf6 {[%clk 0:01:12]} 16. fxg4 {[%clk 0:01:57]}  Qh4 {[%clk 0:00:45]} 17. gxh5 {[%clk 0:01:56]}  Rdg8 {[%clk 0:00:33]} 18. Nf3 {[%clk 0:01:48]}  Qg4 {[%clk 0:00:22]} 19. Ne5 {[%clk 0:01:39]}  Qg7 {[%clk 0:00:16]} 20. d4 {[%clk 0:01:37]}  Bd6 {[%clk 0:00:15]} 21. Qf3 {[%clk 0:01:37]}  Rh6 {[%clk 0:00:12]} 22. Nxf7 {[%clk 0:01:31]}  Qxd4 {[%clk 0:00:05]} 23. Nxh6 {[%clk 0:01:25]}  Rh8 {[%clk 0:00:06]} 24. Nhf5 {[%clk 0:01:23]}  Bxf5 {[%clk 0:00:05]} 25. Nxf5 {[%clk 0:01:24]}  Qe5 {[%clk 0:00:05]} 26. Nxd6+ {[%clk 0:01:24]}  cxd6 {[%clk 0:00:05]} 27. Qf5+ {[%clk 0:01:24]}  Kc7 {[%clk 0:00:05]} 28. Qxe5 {[%clk 0:01:24]}  dxe5 {[%clk 0:00:06]} 29. g4 {[%clk 0:01:25]} 1-0


[Site "https://www.chess.com"]

[Event "Titled Tuesday Blitz September 13 Late 2022"]
[White "Maksimovic, Bojan"]
[Black "Naroditsky, Daniel"]
[WhiteFideId "14408120"]
[BlackFideId "2026961"]
[WhiteElo "2447"]
[BlackElo "2628"]
[Result "1/2-1/2"]
[Round "03"]
[TimeControl "180+1"]
[Date "2022.09.13"]
[WhiteClock "0:01:23"]
[BlackClock "0:02:10"]

1. e4 {[%clk 0:03:00]}  e5 {[%clk 0:02:58]} 2. Nf3 {[%clk 0:03:01]}  Nc6 {[%clk 0:02:58]} 3. Bb5 {[%clk 0:03:01]}  a6 {[%clk 0:02:59]} 4. Ba4 {[%clk 0:03:02]}  d6 {[%clk 0:02:59]} 5. O-O {[%clk 0:03:01]}  Bd7 {[%clk 0:03:00]} 6. c4 {[%clk 0:03:01]}  g6 {[%clk 0:02:53]} 7. Nc3 {[%clk 0:03:00]}  Bg7 {[%clk 0:02:53]} 8. Bxc6 {[%clk 0:03:00]}  bxc6 {[%clk 0:02:52]} 9. d4 {[%clk 0:03:00]}  exd4 {[%clk 0:02:53]} 10. Nxd4 {[%clk 0:03:00]}  Ne7 {[%clk 0:02:54]} 11. Qd2 {[%clk 0:02:51]}  O-O {[%clk 0:02:49]} 12. b3 {[%clk 0:02:52]}  c5 {[%clk 0:02:41]} 13. Nde2 {[%clk 0:02:48]}  f5 {[%clk 0:02:41]} 14. Bb2 {[%clk 0:02:46]}  Bc6 {[%clk 0:02:42]} 15. Nd5 {[%clk 0:02:32]}  fxe4 {[%clk 0:02:12]} 16. Bxg7 {[%clk 0:02:32]}  Kxg7 {[%clk 0:02:13]} 17. Qc3+ {[%clk 0:02:11]}  Kh6 {[%clk 0:02:09]} 18. Qh3+ {[%clk 0:02:02]}  Kg7 {[%clk 0:02:09]} 19. Qc3+ {[%clk 0:02:02]}  Kh6 {[%clk 0:02:10]} 20. Qh3+ {[%clk 0:01:34]}  Kg7 {[%clk 0:02:10]} 21. Qc3+ {[%clk 0:01:23]} 1/2-1/2


[Site "https://www.chess.com"]

[Event "Titled Tuesday Blitz September 13 Late 2022"]
[White "Ozen, Bahadir"]
[Black "Karas, Marek"]
[WhiteFideId "6337058"]
[BlackFideId "14928558"]
[WhiteElo "2503"]
[BlackElo "2272"]
[Result "1/2-1/2"]
[Round "03"]
[TimeControl "180+1"]
[Date "2022.09.13"]
[WhiteClock "0:00:17"]
[BlackClock "0:00:12"]

1. Nf3 {[%clk 0:02:59]}  Nf6 {[%clk 0:02:58]} 2. e3 {[%clk 0:02:58]}  d5 {[%clk 0:02:57]} 3. c4 {[%clk 0:02:58]}  c6 {[%clk 0:02:55]} 4. Nc3 {[%clk 0:02:58]}  e6 {[%clk 0:02:49]} 5. b3 {[%clk 0:02:57]}  Nbd7 {[%clk 0:02:43]} 6. Bb2 {[%clk 0:02:57]}  Bd6 {[%clk 0:02:38]} 7. Rc1 {[%clk 0:02:55]}  Qe7 {[%clk 0:02:32]} 8. Qc2 {[%clk 0:02:54]}  O-O {[%clk 0:02:22]} 9. Be2 {[%clk 0:02:52]}  a6 {[%clk 0:02:19]} 10. d4 {[%clk 0:02:46]}  e5 {[%clk 0:02:14]} 11. dxe5 {[%clk 0:02:39]}  Nxe5 {[%clk 0:02:14]} 12. cxd5 {[%clk 0:02:39]}  cxd5 {[%clk 0:02:11]} 13. O-O {[%clk 0:02:34]}  Bg4 {[%clk 0:02:08]} 14. Nd4 {[%clk 0:02:12]}  Bxe2 {[%clk 0:02:05]} 15. Ncxe2 {[%clk 0:02:06]}  Neg4 {[%clk 0:02:00]} 16. h3 {[%clk 0:01:54]}  Nh6 {[%clk 0:01:55]} 17. Nf5 {[%clk 0:01:53]}  Nxf5 {[%clk 0:01:55]} 18. Qxf5 {[%clk 0:01:54]}  Qe6 {[%clk 0:01:51]} 19. Nd4 {[%clk 0:01:51]}  Qe4 {[%clk 0:01:42]} 20. Qxe4 {[%clk 0:01:44]}  dxe4 {[%clk 0:01:29]} 21. Nf5 {[%clk 0:01:43]}  Rfd8 {[%clk 0:01:27]} 22. Bxf6 {[%clk 0:01:35]}  gxf6 {[%clk 0:01:27]} 23. Rfd1 {[%clk 0:01:32]}  Be5 {[%clk 0:01:26]} 24. Kf1 {[%clk 0:01:14]}  h5 {[%clk 0:01:22]} 25. Ke2 {[%clk 0:01:12]}  Kh7 {[%clk 0:01:21]} 26. g4 {[%clk 0:01:10]}  hxg4 {[%clk 0:01:14]} 27. hxg4 {[%clk 0:01:11]}  Kg6 {[%clk 0:01:14]} 28. Rh1 {[%clk 0:01:05]}  Rh8 {[%clk 0:01:13]} 29. Rcd1 {[%clk 0:00:57]}  Rxh1 {[%clk 0:01:05]} 30. Rxh1 {[%clk 0:00:57]}  Kg5 {[%clk 0:01:06]} 31. Rh7 {[%clk 0:00:40]}  Kxg4 {[%clk 0:00:59]} 32. Ne7 {[%clk 0:00:40]}  Rf8 {[%clk 0:00:43]} 33. Rg7+ {[%clk 0:00:40]}  Kh5 {[%clk 0:00:36]} 34. Nf5 {[%clk 0:00:41]}  Rc8 {[%clk 0:00:31]} 35. a4 {[%clk 0:00:28]}  Rc2+ {[%clk 0:00:27]} 36. Kf1 {[%clk 0:00:28]}  b5 {[%clk 0:00:27]} 37. axb5 {[%clk 0:00:27]}  axb5 {[%clk 0:00:27]} 38. Ne7 {[%clk 0:00:20]}  Rb2 {[%clk 0:00:24]} 39. Rxf7 {[%clk 0:00:18]}  Rxb3 {[%clk 0:00:16]} 40. Nc6 {[%clk 0:00:17]}  Kg4 {[%clk 0:00:12]} 41. Nxe5+ {[%clk 0:00:16]}  fxe5 {[%clk 0:00:13]} 42. Kg2 {[%clk 0:00:15]}  b4 {[%clk 0:00:11]} 43. Rf8 {[%clk 0:00:15]}  Rb1 {[%clk 0:00:11]} 44. Re8 {[%clk 0:00:14]}  Kf5 {[%clk 0:00:11]} 45. Rf8+ {[%clk 0:00:14]}  Ke6 {[%clk 0:00:11]} 46. Re8+ {[%clk 0:00:15]}  Kd5 {[%clk 0:00:11]} 47. Rd8+ {[%clk 0:00:15]}  Ke6 {[%clk 0:00:12]} 48. Re8+ {[%clk 0:00:16]}  Kf5 {[%clk 0:00:12]} 49. Rf8+ {[%clk 0:00:16]}  Ke6 {[%clk 0:00:12]} 50. Re8+ {[%clk 0:00:17]} 1/2-1/2


[Site "https://www.chess.com"]

[Event "Titled Tuesday Blitz September 13 Late 2022"]
[White "Paravyan, David"]
[Black "Shpanko, Nadiia"]
[WhiteFideId "4194985"]
[BlackFideId "14132400"]
[WhiteElo "2555"]
[BlackElo "2139"]
[Result "1/2-1/2"]
[Round "03"]
[TimeControl "180+1"]
[Date "2022.09.13"]
[WhiteClock "0:00:04"]
[BlackClock "0:00:19"]

1. e4 {[%clk 0:03:00]}  g6 {[%clk 0:02:57]} 2. d4 {[%clk 0:02:55]}  Nf6 {[%clk 0:02:57]} 3. e5 {[%clk 0:02:54]}  Nh5 {[%clk 0:02:57]} 4. Be2 {[%clk 0:02:54]}  d6 {[%clk 0:02:55]} 5. Nf3 {[%clk 0:02:55]}  dxe5 {[%clk 0:02:51]} 6. Nxe5 {[%clk 0:02:56]}  Nf6 {[%clk 0:02:47]} 7. O-O {[%clk 0:02:56]}  Bg7 {[%clk 0:02:47]} 8. Re1 {[%clk 0:02:47]}  O-O {[%clk 0:02:46]} 9. c3 {[%clk 0:02:40]}  Nbd7 {[%clk 0:02:46]} 10. Nxd7 {[%clk 0:01:52]}  Bxd7 {[%clk 0:02:47]} 11. Nd2 {[%clk 0:01:53]}  c6 {[%clk 0:02:46]} 12. Nc4 {[%clk 0:01:49]}  Nd5 {[%clk 0:02:43]} 13. Bf1 {[%clk 0:01:48]}  Qc7 {[%clk 0:02:40]} 14. Qf3 {[%clk 0:01:41]}  Bf5 {[%clk 0:02:34]} 15. h3 {[%clk 0:01:37]}  Rad8 {[%clk 0:02:30]} 16. Bd2 {[%clk 0:01:32]}  b5 {[%clk 0:02:26]} 17. Ne3 {[%clk 0:01:31]}  Nxe3 {[%clk 0:02:23]} 18. Bxe3 {[%clk 0:01:32]}  e5 {[%clk 0:02:22]} 19. dxe5 {[%clk 0:01:29]}  Bxe5 {[%clk 0:02:17]} 20. Bg5 {[%clk 0:01:26]}  Rd7 {[%clk 0:02:08]} 21. Rad1 {[%clk 0:01:23]}  Bg7 {[%clk 0:02:01]} 22. a3 {[%clk 0:01:18]}  a5 {[%clk 0:01:59]} 23. h4 {[%clk 0:01:16]}  Qb7 {[%clk 0:01:51]} 24. h5 {[%clk 0:01:15]}  b4 {[%clk 0:01:46]} 25. axb4 {[%clk 0:01:14]}  axb4 {[%clk 0:01:46]} 26. cxb4 {[%clk 0:01:15]}  Bxb2 {[%clk 0:01:43]} 27. h6 {[%clk 0:01:10]}  Qxb4 {[%clk 0:01:38]} 28. Qxc6 {[%clk 0:00:42]}  Rxd1 {[%clk 0:01:36]} 29. Rxd1 {[%clk 0:00:43]}  Qg4 {[%clk 0:01:33]} 30. Rd2 {[%clk 0:00:33]}  Qxg5 {[%clk 0:01:13]} 31. Rxb2 {[%clk 0:00:33]}  Qxh6 {[%clk 0:01:13]} 32. Qd6 {[%clk 0:00:32]}  Qg7 {[%clk 0:01:13]} 33. Rb8 {[%clk 0:00:27]}  h5 {[%clk 0:01:07]} 34. g3 {[%clk 0:00:23]}  Rxb8 {[%clk 0:01:04]} 35. Qxb8+ {[%clk 0:00:24]}  Qf8 {[%clk 0:01:04]} 36. Qe5 {[%clk 0:00:23]}  Be6 {[%clk 0:01:00]} 37. Bd3 {[%clk 0:00:18]}  Qg7 {[%clk 0:01:00]} 38. Qb8+ {[%clk 0:00:16]}  Kh7 {[%clk 0:01:01]} 39. Qb5 {[%clk 0:00:15]}  Qa1+ {[%clk 0:01:00]} 40. Kh2 {[%clk 0:00:14]}  Qf6 {[%clk 0:01:00]} 41. Qxh5+ {[%clk 0:00:13]}  Kg7 {[%clk 0:00:58]} 42. Qc5 {[%clk 0:00:14]}  Bg4 {[%clk 0:00:53]} 43. Qe3 {[%clk 0:00:11]}  Bf3 {[%clk 0:00:51]} 44. Kg1 {[%clk 0:00:11]}  Qa1+ {[%clk 0:00:47]} 45. Bf1 {[%clk 0:00:11]}  Bb7 {[%clk 0:00:42]} 46. Qd3 {[%clk 0:00:10]}  Bc8 {[%clk 0:00:39]} 47. Kh2 {[%clk 0:00:09]}  Qf6 {[%clk 0:00:38]} 48. Qe3 {[%clk 0:00:08]}  Be6 {[%clk 0:00:38]} 49. Bg2 {[%clk 0:00:08]}  Qf5 {[%clk 0:00:37]} 50. f4 {[%clk 0:00:08]}  Qh5+ {[%clk 0:00:37]} 51. Kg1 {[%clk 0:00:08]}  Qd1+ {[%clk 0:00:37]} 52. Kh2 {[%clk 0:00:08]}  Qh5+ {[%clk 0:00:37]} 53. Kg1 {[%clk 0:00:09]}  Qd1+ {[%clk 0:00:37]} 54. Bf1 {[%clk 0:00:08]}  Qg4 {[%clk 0:00:36]} 55. Kf2 {[%clk 0:00:08]}  Qf5 {[%clk 0:00:36]} 56. Qd4+ {[%clk 0:00:08]}  Qf6 {[%clk 0:00:36]} 57. Qb4 {[%clk 0:00:08]}  Bd5 {[%clk 0:00:34]} 58. Be2 {[%clk 0:00:08]}  Bc6 {[%clk 0:00:26]} 59. Qc5 {[%clk 0:00:07]}  Bd7 {[%clk 0:00:23]} 60. Qc7 {[%clk 0:00:05]}  Be6 {[%clk 0:00:23]} 61. Qa7 {[%clk 0:00:05]}  Qc3 {[%clk 0:00:22]} 62. Qb6 {[%clk 0:00:04]}  Kf6 {[%clk 0:00:20]} 63. Qd8+ {[%clk 0:00:03]}  Kg7 {[%clk 0:00:20]} 64. Qd6 {[%clk 0:00:03]}  Qf6 {[%clk 0:00:18]} 65. Ke3 {[%clk 0:00:03]}  Qf5 {[%clk 0:00:18]} 66. Qd4+ {[%clk 0:00:03]}  Qf6 {[%clk 0:00:18]} 67. Qb4 {[%clk 0:00:03]}  Qa1 {[%clk 0:00:17]} 68. Kf2 {[%clk 0:00:03]}  Qf6 {[%clk 0:00:17]} 69. Bf3 {[%clk 0:00:02]}  g5 {[%clk 0:00:16]} 70. fxg5 {[%clk 0:00:01]}  Qxg5 {[%clk 0:00:17]} 71. Qd4+ {[%clk 0:00:01]}  Qf6 {[%clk 0:00:18]} 72. Qb4 {[%clk 0:00:01]}  Qg6 {[%clk 0:00:17]} 73. Qf4 {[%clk 0:00:01]}  Qf6 {[%clk 0:00:18]} 74. Qb4 {[%clk 0:00:01]}  Qg6 {[%clk 0:00:18]} 75. Qd4+ {[%clk 0:00:01]}  Qf6 {[%clk 0:00:17]} 76. Qe4 {[%clk 0:00:02]}  Qg6 {[%clk 0:00:17]} 77. Qe5+ {[%clk 0:00:03]}  Qf6 {[%clk 0:00:18]} 78. Qe4 {[%clk 0:00:03]}  Qg6 {[%clk 0:00:18]} 79. Qd4+ {[%clk 0:00:04]}  Qf6 {[%clk 0:00:19]} 1/2-1/2


[Site "https://www.chess.com"]

[Event "Titled Tuesday Blitz September 13 Late 2022"]
[White "Pinero Rodriguez, Carlos Jose"]
[Black "Fishbein, Alexander"]
[WhiteFideId "3901726"]
[BlackFideId "2000377"]
[WhiteElo "2053"]
[BlackElo "2410"]
[Result "0-1"]
[Round "03"]
[TimeControl "180+1"]
[Date "2022.09.13"]
[WhiteClock "0:00:03"]
[BlackClock "0:00:04"]

1. e4 {[%clk 0:02:56]}  c5 {[%clk 0:02:58]} 2. Nf3 {[%clk 0:02:51]}  d6 {[%clk 0:02:58]} 3. d4 {[%clk 0:02:52]}  cxd4 {[%clk 0:02:57]} 4. Nxd4 {[%clk 0:02:52]}  Nf6 {[%clk 0:02:58]} 5. Nc3 {[%clk 0:02:52]}  Nc6 {[%clk 0:02:58]} 6. Bg5 {[%clk 0:02:49]}  e6 {[%clk 0:02:58]} 7. Qd2 {[%clk 0:02:45]}  Be7 {[%clk 0:02:57]} 8. f4 {[%clk 0:02:43]}  O-O {[%clk 0:02:57]} 9. Nf3 {[%clk 0:02:43]}  h6 {[%clk 0:02:53]} 10. Bh4 {[%clk 0:02:42]}  Nxe4 {[%clk 0:02:49]} 11. Nxe4 {[%clk 0:02:21]}  Bxh4+ {[%clk 0:02:47]} 12. Nxh4 {[%clk 0:02:22]}  Qxh4+ {[%clk 0:02:41]} 13. g3 {[%clk 0:02:22]}  Qh5 {[%clk 0:02:33]} 14. Be2 {[%clk 0:02:18]}  Qg6 {[%clk 0:02:17]} 15. Nxd6 {[%clk 0:02:17]}  Rd8 {[%clk 0:02:16]} 16. O-O-O {[%clk 0:02:13]}  Qf6 {[%clk 0:02:08]} 17. Qe3 {[%clk 0:01:43]}  e5 {[%clk 0:02:00]} 18. fxe5 {[%clk 0:01:37]}  Qxe5 {[%clk 0:01:53]} 19. Qxe5 {[%clk 0:01:32]}  Nxe5 {[%clk 0:01:54]} 20. Rhe1 {[%clk 0:01:29]}  f6 {[%clk 0:01:46]} 21. Nc4 {[%clk 0:01:14]}  Rxd1+ {[%clk 0:01:44]} 22. Rxd1 {[%clk 0:01:14]}  Bg4 {[%clk 0:01:33]} 23. Bxg4 {[%clk 0:00:36]}  Nxg4 {[%clk 0:01:34]} 24. h3 {[%clk 0:00:35]}  Nf2 {[%clk 0:01:32]} 25. Rd7 {[%clk 0:00:34]}  b6 {[%clk 0:01:31]} 26. Nd6 {[%clk 0:00:24]}  g6 {[%clk 0:01:07]} 27. h4 {[%clk 0:00:22]}  h5 {[%clk 0:01:01]} 28. c4 {[%clk 0:00:16]}  f5 {[%clk 0:00:59]} 29. Nb5 {[%clk 0:00:12]}  Ne4 {[%clk 0:00:58]} 30. Nd4 {[%clk 0:00:10]}  Nxg3 {[%clk 0:00:56]} 31. Ne6 {[%clk 0:00:10]}  Kh8 {[%clk 0:00:38]} 32. Nf4 {[%clk 0:00:05]}  Rg8 {[%clk 0:00:29]} 33. Rxa7 {[%clk 0:00:05]}  g5 {[%clk 0:00:27]} 34. hxg5 {[%clk 0:00:05]}  Rxg5 {[%clk 0:00:26]} 35. a4 {[%clk 0:00:05]}  Rg4 {[%clk 0:00:26]} 36. Ne6 {[%clk 0:00:04]}  Rxc4+ {[%clk 0:00:26]} 37. Kd2 {[%clk 0:00:05]}  h4 {[%clk 0:00:23]} 38. Ng5 {[%clk 0:00:04]}  Ne4+ {[%clk 0:00:21]} 39. Nxe4 {[%clk 0:00:04]}  Rxe4 {[%clk 0:00:21]} 40. Ra6 {[%clk 0:00:04]}  h3 {[%clk 0:00:17]} 41. Rxb6 {[%clk 0:00:03]}  Kg7 {[%clk 0:00:18]} 42. Rb3 {[%clk 0:00:03]}  Rh4 {[%clk 0:00:18]} 43. Rg3+ {[%clk 0:00:04]}  Kf6 {[%clk 0:00:18]} 44. Rg1 {[%clk 0:00:04]}  h2 {[%clk 0:00:17]} 45. Rh1 {[%clk 0:00:05]}  Ke5 {[%clk 0:00:17]} 46. Ke2 {[%clk 0:00:05]}  Rb4 {[%clk 0:00:12]} 47. Kf3 {[%clk 0:00:01]}  Rb3+ {[%clk 0:00:12]} 48. Kg2 {[%clk 0:00:01]}  Rxb2+ {[%clk 0:00:12]} 49. Kh3 {[%clk 0:00:02]}  Kf4 {[%clk 0:00:08]} 50. Rxh2 {[%clk 0:00:02]}  Rb4 {[%clk 0:00:07]} 51. Kh4 {[%clk 0:00:03]}  Ke3+ {[%clk 0:00:06]} 52. Kg5 {[%clk 0:00:02]}  f4 {[%clk 0:00:06]} 53. Rh4 {[%clk 0:00:02]}  Rxa4 {[%clk 0:00:05]} 54. Rh3+ {[%clk 0:00:02]}  f3 {[%clk 0:00:05]} 55. Rh8 {[%clk 0:00:03]}  Ke2 {[%clk 0:00:04]} 56. Rf8 {[%clk 0:00:03]}  Re4 {[%clk 0:00:04]} 57. Kh5 {[%clk 0:00:02]}  f2 {[%clk 0:00:04]} 58. Kg5 {[%clk 0:00:03]}  f1=Q {[%clk 0:00:04]} 59. Rxf1 {[%clk 0:00:03]}  Kxf1 {[%clk 0:00:04]} 0-1


[Site "https://www.chess.com"]